Cogmind - Beta 17 @@@ ROGUE MODE // 2026.06.24 @ 09:56:19 Player: Jimothy Jimone Result: Destroyed by Y-45 Defender with Heavy Assault Rifle Performance ------------- Evolutions (0) 0 Regions Visited (2) 400 Robots Destroyed (9) 45 Value Destroyed (261) 261 Prototype IDs (0) 0 Alien Tech Used (0) 0 Bonus (0) 0 TOTAL SCORE: 706 Bonus ------- None Cogmind --------- Core Integrity 0/250 Matter 290/300 Energy 8/100 System Corruption 0% Temperature Cool (9) Movement Walking (120) Location -10/Mines Parts ------- > --- POWER (1) -------- (None) > --- PROPULSION (2) --- Aluminum Leg > --- UTILITY (2) ------ Improved Heat Sink Improved Terrain Scanner > --- WEAPON (2) ------- Hammer > --- INVENTORY (5) ---- Aluminum Leg Aluminum Leg Mining Laser Peak State ------------ > --- POWER ------------ Ion Engine > --- PROPULSION ------- Aluminum Leg Aluminum Leg > --- UTILITY ---------- Improved Heat Sink Improved Terrain Scanner > --- WEAPON ----------- Small Laser Particle Gun > --- INVENTORY -------- Aluminum Leg Aluminum Leg Small Laser [Rating: 12] Favorites ----------- Power Ion Engine Engine Ion Engine Propulsion Aluminum Leg Leg Aluminum Leg Utility Improved Terrain Scanner Device Improved Terrain Scanner Weapon Small Laser Energy Gun Small Laser Energy Cannon Beam Cannon Ballistic Gun Light Assault Rifle Impact Weapon Hammer Build | -11 -10 -10 ------- Run | Yrd Mat Min Slots Evolved . | . . . Power . | . . . Propulsion . | . . . Utility . | . . . Weapon . | . . . Parts Attached 18 | 5 12 1 Power 2 | . 2 . Engine 2 | . 2 . Core . | . . . Reactor . | . . . Propulsion 6 | 2 4 . Treads . | . . . Leg 6 | 2 4 . Wheel . | . . . Hover . | . . . Flight . | . . . Utility 4 | 2 2 . Device 4 | 2 2 . Storage . | . . . Processor . | . . . Hackware . | . . . Protection . | . . . Artifact . | . . . Weapon 6 | 1 4 1 Energy Gun 3 | . 3 . Energy Cannon 1 | . 1 . Ballistic Gun 1 | 1 . . Ballistic Cannon . | . . . Launcher . | . . . Special Weapon . | . . . Impact Weapon 1 | . . 1 Slashing Weapon . | . . . Piercing Weapon . | . . . Special Melee Weapon . | . . . Unidentified Prototypes . | . . . Parts Lost 9 | . 5 4 Power 2 | . 1 1 Propulsion 3 | . 2 1 Utility 2 | . 2 . Weapon 2 | . . 2 Highest Loss Streak 5 | . 5 3 To Critical Strikes . | . . . Average Backups 1 | . 2 3 Power . | . . . Propulsion . | . . 2 Utility . | . . . Weapon . | . . 1 Tool/Special . | . . . Unused Backups . | . . . Power . | . . . Propulsion . | . . . Utility . | . . . Weapon . | . . . Tool/Special . | . . . Average Slot Usage (%) 83 | . 82 86 Engine 7 | . 8 3 Leg 26 | . 25 27 Device 23 | . 21 28 Energy Gun 17 | . 14 26 Energy Cannon 3 | . 5 . Ballistic Gun 3 | . 5 . Peak Build Rating 12 | 7 12 12 Average Rating 7 | 5 8 10 On Entrance 6 | . 7 12 Avg Prop Armor Cover (%) . | . . . Naked Turns . | . . . Heaviest Build 11 | 3 11 11 Greatest Support 20 | 20 20 20 Greatest Overweight (x) 1 | . 1 . Average Overweight (x) . | . . . Largest Inventory Capacity 5 | 5 5 5 Average Capacity 5 | 5 5 5 Most Carried 5 | 2 5 3 Average Carried 1 | . 2 3 Final Capacity 5 | 5 5 5 Final Carried 3 | 2 3 3 Class Distribution -------------------- 52% | Mutant 47% | Scavenger-Mutant Dominant Class ---------------- Scavenger-Mutant | -10/Materials Scavenger-Mutant | -10/Mines Resources | -11 -10 -10 ----------- Run | Yrd Mat Min Matter Collected 392 | 276 116 . Remotely . | . . . Salvage Created 298 | 49 249 . Parts 27 | 8 19 . Haulers Intercepted . | . . . Recyclers Shooed . | . . . Parts Field Recycled . | . . . Retrieved Matter . | . . . Parts Self-Destructed . | . . . Prevented . | . . . Parts Restored . | . . . Kills | -11 -10 -10 ------- Run | Yrd Mat Min Combat Hostiles Destroyed 6 | . 6 . Guns 3 | . 3 . Cannons 3 | . 3 . Classes Destroyed 2 | 1 1 . Tunneler 3 | 3 . . Grunt 6 | . 6 . Best Kill Streak 4 | 1 4 . Combat Bots Only 4 | . 4 . Max Kills in Single Turn 2 | 1 2 . Gunslinging . | . . . Exploded . | . . . Melee . | . . . Uniques/NPCs Destroyed . | . . . Combat | -11 -10 -10 -------- Run | Yrd Mat Min Hostile Shots Fired 110 | . 60 50 Missed 30 | . 12 18 Hits 80 | . 48 32 Projectile 80 | . 48 32 AOE 1 | . . 1 Critical Strikes 1 | . . 1 Damage Taken 1116 | . 623 493 Core 264 | . 156 108 Absorbed by Shields . | . . . Core Remaining (%) 100 | 100 . . Volleys Fired 48 | 26 22 . Largest 2 | 1 2 . Hottest 80 | 20 80 . Shots Fired 59 | 26 33 . Gun 48 | 26 22 . Cannon 11 | . 11 . Launcher . | . . . Special . | . . . Kinetic 37 | 26 11 . Thermal 22 | . 22 . Explosive . | . . . Electromagnetic . | . . . Robot Hit Streak 11 | 11 6 . Robot Miss Streak 3 | 1 3 . Penetration Max . | . . . Secondary Targets . | . . . Shots Hit Robots 40 | 21 19 . Core Hits 18 | 6 12 . Critical Kills . | . . . Critical Parts Destroyed . | . . . Critical Strikes . | . . . Melee Attacks . | . . . Impact . | . . . Slashing . | . . . Piercing . | . . . Sneak Attacks . | . . . Combat Hostiles . | . . . Follow-up Attacks . | . . . Damage Inflicted 417 | 175 242 . Guns 325 | 175 150 . Cannons 89 | . 89 . Explosions . | . . . Melee . | . . . Ramming 3 | . 3 . Kinetic 226 | 175 51 . Thermal 188 | . 188 . Explosive . | . . . Electromagnetic . | . . . Impact . | . . . Slashing . | . . . Piercing . | . . . Highest Corruption . | . . . Average Corruption . | . . . Corruption Purged . | . . . Corruption Blocked . | . . . Overload Shots . | . . . Overflow Damage . | . . . Projectiles . | . . . Explosions . | . . . Melee . | . . . Knockbacks . | . . . Impact . | . . . Kinetic . | . . . Secondary . | . . . Self-Inflicted Damage . | . . . Shots . | . . . Rammed . | . . . Targets Rammed 1 | . 1 . Kicked 1 | . 1 . Crushed . | . . . Highest Temperature 289 | . 289 . Average Temperature 174 | . 174 . Received Heat Transfer 479 | . 351 128 Effects 5 | . 5 . Energy Bleed 2 | . 2 . Interference 3 | . 3 . Siege Activations . | . . . Martial Activations . | . . . Shielding Activations . | . . . Robots Disrupted . | . . . Combat Hostiles . | . . . Robots Corrupted . | . . . Combat Hostiles . | . . . Parts Fried . | . . . Impact Corruptions . | . . . Robots Melted . | . . . Combat Hostiles . | . . . Parts Melted 1 | . 1 . Heat Transferred 410 | . 410 . Parts Sabotaged . | . . . Parts Stolen . | . . . Parts Stripped . | . . . Power Chain Reactions . | . . . Alert | -11 -10 -10 ------- Run | Yrd Mat Min Maximum Alert Level . | . . . Low Security (%) 100 | 100 100 100 Level 1 . | . . . Level 2 . | . . . Level 3 . | . . . Level 4 . | . . . Level 5 . | . . . High Security . | . . . Max Security . | . . . Peak Influence 80 | 5 80 15 Initial . | . . . Average 13 | . 27 . Influence Increases 185 | 15 155 15 Destroy 0b10 Robot/C 120 | . 120 . Destroy 0b10 Robot/NC 15 | 15 . . Destroy Leader 20 | . 20 . Disable Machine 15 | . 15 . Lose Combat Pursuer 15 | . . 15 Influence Decreases 185 | 15 155 15 Time Decay 140 | 15 110 15 Lost Part 45 | . 45 . Squads Dispatched 1 | . 1 . Investigation . | . . . Extermination . | . . . Reinforcement 1 | . 1 . Assault . | . . . Garrison . | . . . Intercept . | . . . Searches Triggered . | . . . Construction Impeded . | . . . Haulers Reinforced . | . . . Active Scanning Responses . | . . . Cargo Convoy Interrupts . | . . . Stealth | -11 -10 -10 --------- Run | Yrd Mat Min Distress Signals 1 | . 1 . Communications Jammed . | . . . Distress Signals . | . . . Times Spotted 40 | . 12 28 Peak Tracking Total 23 | . 6 23 Tactical Retreats 2 | . . 2 Traps | -11 -10 -10 ------- Run | Yrd Mat Min Traps Triggered . | . . . Indirectly . | . . . Trap Hack Attempts . | . . . Triggered . | . . . Disarmed . | . . . Reprogrammed . | . . . Reused . | . . . Traps Extracted . | . . . Installed . | . . . Triggered . | . . . Machines | -11 -10 -10 ---------- Run | Yrd Mat Min Machines Disabled 1 | . 1 . Max in Single Turn 1 | . 1 . Machines Repaired . | . . . Machines Dismantled . | . . . Machines Sabotaged . | . . . Overloaded Fab Kills . | . . . Hacking | -11 -10 -10 --------- Run | Yrd Mat Min Machines Accessed 2 | . 2 . Terminals 2 | . 2 . Fabricators . | . . . Repair Stations . | . . . Recycling Units . | . . . Scanalyzers . | . . . Garrison Access . | . . . Total Hacks 3 | . 3 . Successful 1 | . 1 . Failed 2 | . 2 . Catastrophic . | . . . Database Lockouts . | . . . Manual . | . . . Terminals 3 | . 3 . Fabricators . | . . . Repair Stations . | . . . Recycling Units . | . . . Scanalyzers . | . . . Garrison Access . | . . . Terminal Hacks 1 | . 1 . Branch Access Points 1 | . 1 . Fabricator Hacks . | . . . Repair Station Hacks . | . . . Recycling Unit Hacks . | . . . Scanalyzer . | . . . Garrison Access Hacks . | . . . Unauthorized Hacks . | . . . Terminals . | . . . Fabricators . | . . . Repair Stations . | . . . Recycling Units . | . . . Scanalyzers . | . . . Garrison Access . | . . . Data Cores Recovered . | . . . Used . | . . . Hacking Detections 2 | . 2 . Full Trace Events . | . . . Feedback Events . | . . . Feedback Blocked . | . . . Robot Schematics Acquired . | . . . Robots Built . | . . . Authchips . | . . . Time . | . . . Total Robot Build Rating . | . . . Part Schematics Acquired . | . . . Parts Built . | . . . Authchips . | . . . Time . | . . . Total Part Build Rating . | . . . Part Studies Acquired . | . . . Parts Repaired . | . . . Time . | . . . Parts Recycled . | . . . Recycled Matter . | . . . Retrieved Matter . | . . . Retrieved Components . | . . . Parts Scanalyzed . | . . . Part Schematics Acquired . | . . . Parts Damaged . | . . . Bothacking | -11 -10 -10 ------------ Run | Yrd Mat Min Used RIF Installer . | . . . Robots Hacked . | . . . Non-combat . | . . . Combat . | . . . Robot Hacks Applied . | . . . Relay Couplers Released . | . . . Fabnet Peak Effective % . | . . . Robots Rewired . | . . . Allies Hacked . | . . . Hacks Repelled . | . . . Allies | -11 -10 -10 -------- Run | Yrd Mat Min Total Allies . | . . . Largest Group . | . . . Highest-Rated Group . | . . . Highest-Rated Ally . | . . . Total Orders . | . . . Ally Attacks . | . . . Total Damage . | . . . Kills . | . . . Allies Corrupted . | . . . Allies Melted . | . . . Intel | -11 -10 -10 ------- Run | Yrd Mat Min Active Infowar (turns) 517 | 135 236 146 Terrain 517 | 135 236 146 Seismic 123 | 28 95 . Robot Analysis Total . | . . . Derelict Logs Recovered 1 | . . 1 Drone Launches . | . . . Drone Recoveries . | . . . Exploration | -11 -10 -10 ------------- Run | Yrd Mat Min Turns Passed 656 | 205 305 146 Spaces Moved 416 | 120 192 104 Core 10 | 8 2 . Treads . | . . . Legs 406 | 112 190 104 Wheels . | . . . Hover . | . . . Flight . | . . . Fastest Speed 50 | 50 100 120 Average Speed 118 | 115 119 120 Slowest Speed 120 | 120 120 120 Overloaded Moves . | . . . Propulsion Burnouts . | . . . Robots Hopped . | . . . Potential Cave-ins . | . . . Cave-ins Triggered . | . . . Exploration Rate (%) 21 | 5 27 32 Regions Visited 2 Branch Regions 1 Pre-discovered Areas . | . . . Known Exits Taken 1 | . 1 . Unknown Exits Taken 1 | 1 . . Scrap Searched . | . . . Spaces Dug . | . . . Terrain Destroyed . | . . . Melee . | . . . Projectile . | . . . AOE . | . . . Terrain Rammed . | . . . Walls Destroyed . | . . . Machines Disabled . | . . . Actions | -11 -10 -10 --------- Run | Yrd Mat Min Total 519 | 163 232 124 Wait 31 | 11 1 19 Move 414 | 119 191 104 Hop . | . . . Pick Up 4 | 2 2 . Fast Attach 11 | 5 5 1 Attach 3 | . 3 . Detach . | . . . Swap 5 | . 5 . Drop 2 | . 2 . Fire 48 | 26 22 . Melee . | . . . Ram . | . . . Kick 1 | . 1 . Crush . | . . . Escape Stasis . | . . . Rewire . | . . . Trap . | . . . Miscellaneous . | . . . Route ------- -11/Scrapyard -10/Materials -10/Mines (discovered 1 exit: [Mat]) History --------- Turn | Location | Event 7 | -11/Scrapyard | Discovered new exit (range 15) 206 | -11/Scrapyard | Entered Materials 242 | -10/Materials | Identified exit to Mines 316 | -10/Materials | Build established: Mutant 331 | -10/Materials | Core integrity fell below 50% 365 | -10/Materials | Lost 5 parts (1p2n2u) 511 | -10/Materials | Entered Mines 512 | -10/Mines | Assembled infested the area 517 | -10/Mines | Assisted by a Guerilla fighting off Assembled 536 | -10/Mines | Discovered new exit (range 16) 561 | -10/Mines | Met a Derelict bent on vengeance 636 | -10/Mines | Learned Materials security intel 643 | -10/Mines | Core integrity fell below 20% 648 | -10/Mines | Build established: Scavenger-Mutant 657 | -10/Mines | Destroyed by Y-45 Defender with Heavy Assault Rifle Last Messages --------------- as-73255 destroyed. as-25125 destroyed. T-07 Excavator destroyed. Ion Engine destroyed. as-15925 destroyed. as-36235 destroyed. T-07 Excavator is excavating. [Achievement: Slippery One] T-07 Excavator is excavating. HV Slug penetrates Wall. HV Slug penetrates D-53 Grenadier. D-53 Grenadier suffers critical hit (Destroy). D-53 Grenadier destroyed. Acquired derelict log, extracted data. Data stored: Materials security intel. Critical hit (Burn: +37). Particle Gun destroyed. Sml. Laser destroyed. Aluminum Leg destroyed. Acquired Hammer. Map ----- +----------------------------------------------------+ | | | | | | | | | | | | | | | | | | | | | | | | | | | | | | | | | | | | | ?????????????????????????????????????????????? | | ????????????????????????????#####????????????? | | ?????????????#??????######## ##??#????????? | | ???????????????????##!]## #???????????? | | ?????????#?#???????#"[! # #???????????? | | ???????????????????#Y + # ##?????????##? | | ???????????????????#Y ; # #?????#??????? | | ???????????????????#"@ # # #?# ?#????#??? | | ???????????????????##!/## #?### ???????? | | ??????????????????######## #### ???????? | | ?????????????????## ##?# #???????? | | ??????????????????# ##### #??# #???????? | | ????????????????????#???# ##??## #???????? | | ????????????????????????## %##????# #???????? | | ??????????????#???????##### #?????# #??????"? | | ??????????#??#????? ?## #" #?##### #???????? | | ??????????????????? ?# ### ##??????? | | ???????????#?????????# % #?????#? | | ?????????????????????## % ##???#?? | | ??????????????????????# #?????? | | ??????????????????????# ## ## #????## | | ??????????????????????# ### ## ##????# | | ?????????????????????# ###?# ##??#??# | | ??????????????? ?????# ???#### ###??### | | ????????????????????# ?????# ##### | | ????????????????????# #??????# | | ????????????????????## #??????# | | ?????????????????????#### ??????# | | ????????????????????????# ?????# #### | | ???????????????????????? ??? ##??### | | ???????????????????????? ? #?????? | | ????????????????????????#### ##????? | +----------------------------------------------------+ Best States ------------- Heat Dissipation 39 Energy Generation 10 Energy Capacity 250 Matter Stores 300 Matter Capacity 300 Sight Range 16 Terrain Scan Range 16 Terrain Scan Density 10 Evasion (%) 55 Item Schematics ----------------- None Robot Schematics ------------------ None Fabricated ------------ Nothing Repaired ---------- Nothing Studied --------- None Alien Tech Used ----------------- None Achievements -------------- Slippery One Challenges ------------ None Game ------ Seed HelicalStorageTreads Manual? 0 Play Time 00:12:25 Cumulative 31.1 hours Start 2026.06.24 @ 09:46:15 End 2026.06.24 @ 09:56:19 Sessions 1 Manual Loads 0 Difficulty Rogue Special Mode None Game No. 60 Rogue 60 Adventurer 0 Explorer 0 Win Type - Total 0 Types 0/0/0/0/0/0/0/0/0/0 Lore% 29 Gallery% 20 Achievement% 20 Wizard Run 0 Options --------- Layout 1 ASCII 0 Keyboard 1 Movement Arrows Keybinds 0 Fullscreen 0 Font 14/SmallcapsGlow Map View 55x38 Zoom Use 0% Tactical HUD 0 Map Filters NONE Filters NONE Steam 1 RUN: 663699ad-3145-4fc7-a49c-8996f29dfce2